[Event "*** Titled Tuesday Blitz"]
[Site "Chess.com"]
[Date "2020.04.14"]
[Round "9"]
[White "MarcoRiehle"]
[Black "vladimirdamjanovic"]
[Result "0-1"]
[WhiteElo "2705"]
[BlackElo "2554"]
[TimeControl "180+1"]
[EndTime "11:41:37 PDT"]
[Termination "vladimirdamjanovic won by resignation"]

1. e4 {[%clk 0:02:59.5]} 1... c6 {[%clk 0:02:59.5]} 2. c4 {[%clk 0:02:57.8]}
2... d5 {[%clk 0:03:00.4]} 3. exd5 {[%clk 0:02:58.7]} 3... cxd5 {[%clk
0:03:01.3]} 4. cxd5 {[%clk 0:02:59.6]} 4... Nf6 {[%clk 0:03:01.8]} 5. Nc3 {[%clk
0:03:00.5]} 5... Nxd5 {[%clk 0:02:51.8]} 6. Nf3 {[%clk 0:03:00.8]} 6... Nc6
{[%clk 0:02:51.7]} 7. Bb5 {[%clk 0:02:58.4]} 7... e6 {[%clk 0:02:49.3]} 8. O-O
{[%clk 0:02:57.9]} 8... Be7 {[%clk 0:02:48]} 9. d4 {[%clk 0:02:57.5]} 9... O-O
{[%clk 0:02:45.9]} 10. Re1 {[%clk 0:02:56.5]} 10... Nf6 {[%clk 0:02:43.8]} 11.
Bg5 {[%clk 0:02:53]} 11... Bd7 {[%clk 0:02:37.6]} 12. Rc1 {[%clk 0:02:50.8]}
12... a6 {[%clk 0:02:34.1]} 13. Bd3 {[%clk 0:02:49.6]} 13... h6 {[%clk
0:02:34.6]} 14. Bh4 {[%clk 0:02:48.3]} 14... Nh5 {[%clk 0:02:31.5]} 15. Bg3
{[%clk 0:02:47]} 15... Nxg3 {[%clk 0:02:30.9]} 16. hxg3 {[%clk 0:02:47.9]} 16...
Bf6 {[%clk 0:02:31.8]} 17. Bb1 {[%clk 0:02:47.5]} 17... Ne7 {[%clk 0:02:26.8]}
18. Ne4 {[%clk 0:02:47.1]} 18... Nd5 {[%clk 0:02:25]} 19. Ne5 {[%clk 0:02:44.9]}
19... Qe7 {[%clk 0:02:21.5]} 20. Nxf6+ {[%clk 0:02:33.4]} 20... Nxf6 {[%clk
0:02:18.1]} 21. Rc7 {[%clk 0:02:32.7]} 21... Qd6 {[%clk 0:02:17.1]} 22. Rxb7
{[%clk 0:02:29.1]} 22... Rab8 {[%clk 0:02:17.3]} 23. Rxb8 {[%clk 0:02:28]} 23...
Rxb8 {[%clk 0:02:18.2]} 24. b3 {[%clk 0:02:26.3]} 24... Bb5 {[%clk 0:02:16.2]}
25. Bd3 {[%clk 0:02:21.5]} 25... Rd8 {[%clk 0:02:13.6]} 26. Bxb5 {[%clk
0:02:21]} 26... axb5 {[%clk 0:02:14.5]} 27. Nf3 {[%clk 0:02:21.5]} 27... b4
{[%clk 0:02:14.7]} 28. Qd2 {[%clk 0:02:21.1]} 28... Nd5 {[%clk 0:02:09.5]} 29.
Rc1 {[%clk 0:02:20.9]} 29... Ra8 {[%clk 0:02:07]} 30. Rc4 {[%clk 0:02:18]} 30...
Qa6 {[%clk 0:02:04.8]} 31. Qc2 {[%clk 0:02:17.4]} 31... g6 {[%clk 0:02:00.1]}
32. Ne5 {[%clk 0:02:15]} 32... Kg7 {[%clk 0:02:00.1]} 33. Nc6 {[%clk 0:02:02.2]}
33... Qxa2 {[%clk 0:01:57.1]} 34. Qxa2 {[%clk 0:02:02]} 34... Rxa2 {[%clk
0:01:52.6]} 35. Nxb4 {[%clk 0:02:02.9]} 35... Ra1+ {[%clk 0:01:45.2]} 36. Kh2
{[%clk 0:02:02.3]} 36... Nf6 {[%clk 0:01:46.1]} 37. f3 {[%clk 0:02:00.8]} 37...
Rb1 {[%clk 0:01:46.3]} 38. Rc3 {[%clk 0:01:58.1]} 38... h5 {[%clk 0:01:44.5]}
39. Nc6 {[%clk 0:01:54]} 39... Nd5 {[%clk 0:01:42.3]} 40. Rd3 {[%clk 0:01:52]}
40... g5 {[%clk 0:01:39.6]} 41. Ne5 {[%clk 0:01:50.4]} 41... f6 {[%clk 0:01:38]}
42. Nc6 {[%clk 0:01:50.5]} 42... Kg6 {[%clk 0:01:34.6]} 43. Nd8 {[%clk
0:01:44.9]} 43... Kf5 {[%clk 0:01:29.4]} 44. Nc6 {[%clk 0:01:45.5]} 44... g4
{[%clk 0:01:24.6]} 45. f4 {[%clk 0:01:44.1]} 45... Ke4 {[%clk 0:01:21.1]} 46.
Rd2 {[%clk 0:01:42.5]} 46... Ne3 {[%clk 0:01:21.7]} 47. Re2 {[%clk 0:01:32.2]}
47... Kd3 {[%clk 0:01:20.6]} 48. Rxe3+ {[%clk 0:01:25]} 48... Kxe3 {[%clk
0:01:21.5]} 49. Nd8 {[%clk 0:01:24.9]} 49... Kf2 {[%clk 0:01:11.2]} 50. Nxe6
{[%clk 0:01:23.1]} 50... Rg1 {[%clk 0:01:03.6]} 0-1

[Event "*** Titled Tuesday Blitz"]
[Site "Chess.com"]
[Date "2020.04.14"]
[Round "9"]
[White "K_A_S_T_O_R"]
[Black "Gentlejimmy7"]
[Result "0-1"]
[WhiteElo "2809"]
[BlackElo "2661"]
[TimeControl "180+1"]
[EndTime "11:41:40 PDT"]
[Termination "Gentlejimmy7 won by resignation"]

1. e4 {[%clk 0:03:00.9]} 1... c5 {[%clk 0:02:44.4]} 2. Nf3 {[%clk 0:03:00.1]}
2... Nc6 {[%clk 0:02:37.7]} 3. d4 {[%clk 0:03:00.1]} 3... cxd4 {[%clk
0:02:37.3]} 4. Nxd4 {[%clk 0:03:00.5]} 4... Nf6 {[%clk 0:02:37.8]} 5. Nc3 {[%clk
0:03:00]} 5... e6 {[%clk 0:02:38.2]} 6. a3 {[%clk 0:02:58.4]} 6... Be7 {[%clk
0:02:36.2]} 7. g3 {[%clk 0:02:54.9]} 7... Qb6 {[%clk 0:02:30.5]} 8. Nb3 {[%clk
0:02:52.1]} 8... a6 {[%clk 0:02:17.3]} 9. Bg2 {[%clk 0:02:51.2]} 9... d6 {[%clk
0:02:16.6]} 10. O-O {[%clk 0:02:50.4]} 10... O-O {[%clk 0:02:15.9]} 11. a4
{[%clk 0:02:48.6]} 11... Qc7 {[%clk 0:02:13.5]} 12. a5 {[%clk 0:02:48.8]} 12...
Bd7 {[%clk 0:02:08.6]} 13. Be3 {[%clk 0:02:45.3]} 13... Rac8 {[%clk 0:02:06.3]}
14. f4 {[%clk 0:02:43]} 14... Nb4 {[%clk 0:02:01.8]} 15. Qe2 {[%clk 0:02:30.4]}
15... Qc4 {[%clk 0:02:00]} 16. Qd2 {[%clk 0:02:24.8]} 16... d5 {[%clk
0:01:48.4]} 17. e5 {[%clk 0:02:22]} 17... Ng4 {[%clk 0:01:48.3]} 18. Bb6 {[%clk
0:02:18]} 18... Bd8 {[%clk 0:01:47.8]} 19. Bxd8 {[%clk 0:02:15]} 19... Rfxd8
{[%clk 0:01:48.1]} 20. h3 {[%clk 0:02:11.4]} 20... Nxc2 {[%clk 0:01:38.4]} 21.
hxg4 {[%clk 0:01:54]} 21... Qxb3 {[%clk 0:01:34.2]} 22. Rac1 {[%clk 0:01:52]}
22... Nb4 {[%clk 0:01:27]} 23. Rfd1 {[%clk 0:01:37.8]} 23... Bc6 {[%clk
0:01:25.4]} 24. Ne2 {[%clk 0:01:33.9]} 24... Ba4 {[%clk 0:01:18.6]} 25. Nd4
{[%clk 0:01:24.2]} 25... Qxg3 {[%clk 0:01:16.2]} 26. Qxb4 {[%clk 0:01:23.7]}
26... Rxc1 {[%clk 0:01:06.9]} 27. Rxc1 {[%clk 0:01:17.2]} 27... Qe3+ {[%clk
0:01:07]} 28. Kh2 {[%clk 0:01:17]} 28... Qxf4+ {[%clk 0:01:04.5]} 29. Kh3 {[%clk
0:01:16.1]} 29... Qxc1 {[%clk 0:01:02.4]} 30. Qxa4 {[%clk 0:01:16.6]} 30... Qxb2
{[%clk 0:01:00.8]} 31. Kg3 {[%clk 0:01:07.9]} 31... Qc3+ {[%clk 0:00:54.5]} 32.
Nf3 {[%clk 0:01:07.9]} 32... d4 {[%clk 0:00:52.9]} 33. Qd1 {[%clk 0:00:58.8]}
33... d3 {[%clk 0:00:52.5]} 34. Bf1 {[%clk 0:00:59.3]} 34... d2 {[%clk
0:00:51.4]} 35. Be2 {[%clk 0:00:56.4]} 35... Qc1 {[%clk 0:00:49.7]} 0-1

[Event "*** Titled Tuesday Blitz"]
[Site "Chess.com"]
[Date "2020.04.14"]
[Round "9"]
[White "BelaKis"]
[Black "kreonx"]
[Result "0-1"]
[WhiteElo "2085"]
[BlackElo "2236"]
[TimeControl "180+1"]
[EndTime "11:41:43 PDT"]
[Termination "kreonx won by resignation"]

1. Nf3 {[%clk 0:03:00.9]} 1... g6 {[%clk 0:02:56.8]} 2. g3 {[%clk 0:02:59.6]}
2... Bg7 {[%clk 0:02:55.7]} 3. Bg2 {[%clk 0:03:00.5]} 3... d5 {[%clk 0:02:55.1]}
4. O-O {[%clk 0:03:01.4]} 4... e5 {[%clk 0:02:55.3]} 5. d3 {[%clk 0:03:02.3]}
5... Nc6 {[%clk 0:02:54.7]} 6. Nbd2 {[%clk 0:02:54]} 6... Nge7 {[%clk
0:02:54.5]} 7. a3 {[%clk 0:02:50.9]} 7... h6 {[%clk 0:02:54.7]} 8. c4 {[%clk
0:02:50.8]} 8... Be6 {[%clk 0:02:54.4]} 9. Qa4 {[%clk 0:02:37.3]} 9... O-O
{[%clk 0:02:52.4]} 10. cxd5 {[%clk 0:02:32.5]} 10... Nxd5 {[%clk 0:02:51.9]} 11.
Ne4 {[%clk 0:02:31.9]} 11... Nb6 {[%clk 0:02:47.2]} 12. Qc2 {[%clk 0:02:16.8]}
12... Nd4 {[%clk 0:02:39.1]} 13. Nxd4 {[%clk 0:02:15.7]} 13... exd4 {[%clk
0:02:39.5]} 14. Nc5 {[%clk 0:02:15.4]} 14... Bd5 {[%clk 0:02:39.2]} 15. Nxb7
{[%clk 0:02:15.2]} 15... Qd7 {[%clk 0:02:17.6]} 16. Na5 {[%clk 0:02:08.9]} 16...
Bxg2 {[%clk 0:02:15]} 17. Kxg2 {[%clk 0:02:07.8]} 17... Qd5+ {[%clk 0:02:15.2]}
18. Kg1 {[%clk 0:02:06.7]} 18... Qxa5 {[%clk 0:02:15.3]} 19. Bd2 {[%clk
0:02:06.4]} 19... Qe5 {[%clk 0:02:14.1]} 20. Bf4 {[%clk 0:02:05.2]} 20... Qe7
{[%clk 0:02:11.6]} 21. Rfe1 {[%clk 0:01:39.6]} 21... Nd5 {[%clk 0:02:09.6]} 22.
Bd2 {[%clk 0:01:39]} 22... c5 {[%clk 0:02:08]} 23. Rac1 {[%clk 0:01:34.1]} 23...
Rfc8 {[%clk 0:02:07.7]} 24. b4 {[%clk 0:01:33.5]} 24... cxb4 {[%clk 0:02:06.7]}
25. Qxc8+ {[%clk 0:01:32.9]} 25... Rxc8 {[%clk 0:02:06.8]} 26. Rxc8+ {[%clk
0:01:33.3]} 26... Kh7 {[%clk 0:02:07.4]} 27. axb4 {[%clk 0:01:29.2]} 27... Nxb4
{[%clk 0:02:07.2]} 28. Rec1 {[%clk 0:01:13.3]} 28... Nd5 {[%clk 0:02:04.8]} 29.
Kf1 {[%clk 0:01:12.1]} 29... Qb7 {[%clk 0:01:49.9]} 30. Kg1 {[%clk 0:01:06.6]}
30... h5 {[%clk 0:01:46.7]} 31. h4 {[%clk 0:01:05.2]} 31... Bh6 {[%clk
0:01:46.1]} 32. Bxh6 {[%clk 0:01:01]} 32... Kxh6 {[%clk 0:01:46.2]} 33. R1c4
{[%clk 0:00:52.6]} 33... a5 {[%clk 0:01:30.5]} 34. R8c5 {[%clk 0:00:48.1]} 34...
Nc3 {[%clk 0:01:11.4]} 35. Rxa5 {[%clk 0:00:42.8]} 35... Qb1+ {[%clk 0:01:08.8]}
36. Kg2 {[%clk 0:00:41.5]} 36... Nxe2 {[%clk 0:01:08.6]} 37. Kf3 {[%clk
0:00:35.5]} 37... Qxd3+ {[%clk 0:01:04]} 0-1

[Event "*** Titled Tuesday Blitz"]
[Site "Chess.com"]
[Date "2020.04.14"]
[Round "9"]
[White "figo13"]
[Black "beto-betun"]
[Result "1-0"]
[WhiteElo "2335"]
[BlackElo "2116"]
[TimeControl "180+1"]
[EndTime "11:41:44 PDT"]
[Termination "figo13 won by resignation"]

1. d4 {[%clk 0:03:00.9]} 1... Nf6 {[%clk 0:02:59.6]} 2. c4 {[%clk 0:03:00.7]}
2... g6 {[%clk 0:02:59.4]} 3. Nc3 {[%clk 0:03:00.8]} 3... Bg7 {[%clk 0:02:59.6]}
4. Nf3 {[%clk 0:03:00.9]} 4... d6 {[%clk 0:02:59.3]} 5. Bg5 {[%clk 0:02:59.4]}
5... O-O {[%clk 0:02:58.9]} 6. e3 {[%clk 0:02:59.6]} 6... Nbd7 {[%clk
0:02:54.2]} 7. Qc2 {[%clk 0:02:58.5]} 7... h6 {[%clk 0:02:52]} 8. Bh4 {[%clk
0:02:57.7]} 8... c5 {[%clk 0:02:51.4]} 9. Be2 {[%clk 0:02:53.7]} 9... a6 {[%clk
0:02:49.8]} 10. O-O {[%clk 0:02:51.8]} 10... b6 {[%clk 0:02:36.3]} 11. h3 {[%clk
0:02:50.4]} 11... Bb7 {[%clk 0:02:35.1]} 12. d5 {[%clk 0:02:49.9]} 12... Bc8
{[%clk 0:02:34.7]} 13. e4 {[%clk 0:02:49.4]} 13... Nh5 {[%clk 0:02:21.8]} 14.
Nd2 {[%clk 0:02:33.3]} 14... Nf4 {[%clk 0:02:18.7]} 15. Rae1 {[%clk 0:02:26.1]}
15... g5 {[%clk 0:02:13.6]} 16. Bg3 {[%clk 0:02:25.7]} 16... Ng6 {[%clk
0:02:10.5]} 17. Bg4 {[%clk 0:02:19.2]} 17... Nde5 {[%clk 0:02:02.2]} 18. Bxc8
{[%clk 0:02:18.5]} 18... Rxc8 {[%clk 0:02:02.7]} 19. a4 {[%clk 0:02:06.6]} 19...
Qd7 {[%clk 0:02:00.5]} 20. Re3 {[%clk 0:02:02.2]} 20... Nf4 {[%clk 0:01:47.5]}
21. b3 {[%clk 0:01:55.9]} 21... Neg6 {[%clk 0:01:31.5]} 22. Nf3 {[%clk
0:01:45.9]} 22... f5 {[%clk 0:01:00.4]} 23. Bxf4 {[%clk 0:01:40.7]} 23... gxf4
{[%clk 0:00:58.9]} 24. Re2 {[%clk 0:01:36.3]} 24... fxe4 {[%clk 0:00:53.7]} 25.
Qxe4 {[%clk 0:01:27.8]} 25... Ne5 {[%clk 0:00:43.6]} 26. Nxe5 {[%clk 0:01:23.8]}
26... Bxe5 {[%clk 0:00:44]} 27. Qg6+ {[%clk 0:01:20.9]} 27... Bg7 {[%clk
0:00:32.2]} 28. Re6 {[%clk 0:01:20.6]} 28... Rf6 {[%clk 0:00:26.7]} 29. Rxf6
{[%clk 0:01:19.9]} 29... exf6 {[%clk 0:00:27.2]} 30. Re1 {[%clk 0:01:17.8]}
30... Qf7 {[%clk 0:00:24.2]} 31. Qxf7+ {[%clk 0:01:11.9]} 31... Kxf7 {[%clk
0:00:25.1]} 32. Re6 {[%clk 0:01:12]} 32... Rd8 {[%clk 0:00:23.9]} 33. Ne4 {[%clk
0:01:10.5]} 33... Re8 {[%clk 0:00:12.2]} 34. Nxd6+ {[%clk 0:01:09.8]} 1-0

[Event "*** Titled Tuesday Blitz"]
[Site "Chess.com"]
[Date "2020.04.14"]
[Round "9"]
[White "PawnEatingZombie"]
[Black "Andrii_Prydun"]
[Result "0-1"]
[WhiteElo "2143"]
[BlackElo "2349"]
[TimeControl "180+1"]
[EndTime "11:41:47 PDT"]
[Termination "Andrii_Prydun won on time"]

1. d4 {[%clk 0:03:00.9]} 1... d5 {[%clk 0:02:59.2]} 2. c4 {[%clk 0:03:00.8]}
2... c6 {[%clk 0:02:58.2]} 3. Nc3 {[%clk 0:03:00.8]} 3... Nf6 {[%clk 0:02:58.2]}
4. e3 {[%clk 0:03:00.5]} 4... e6 {[%clk 0:02:57.8]} 5. Nf3 {[%clk 0:03:00.3]}
5... Nbd7 {[%clk 0:02:57.7]} 6. Qc2 {[%clk 0:03:00.4]} 6... Be7 {[%clk
0:02:56.6]} 7. Bd3 {[%clk 0:02:58.9]} 7... O-O {[%clk 0:02:57.1]} 8. O-O {[%clk
0:02:57.9]} 8... dxc4 {[%clk 0:02:56.7]} 9. Bxc4 {[%clk 0:02:58]} 9... b5 {[%clk
0:02:57.6]} 10. Be2 {[%clk 0:02:58.1]} 10... a6 {[%clk 0:02:56.7]} 11. e4 {[%clk
0:02:58.2]} 11... c5 {[%clk 0:02:55.3]} 12. e5 {[%clk 0:02:56.4]} 12... Ng4
{[%clk 0:02:53.6]} 13. Qe4 {[%clk 0:02:46.7]} 13... cxd4 {[%clk 0:02:52.4]} 14.
Nxd4 {[%clk 0:02:13.5]} 14... Ndxe5 {[%clk 0:02:39.9]} 15. Qxa8 {[%clk
0:02:12.6]} 15... Qxd4 {[%clk 0:02:39.6]} 16. Bxg4 {[%clk 0:01:58.7]} 16... Nxg4
{[%clk 0:02:39.1]} 17. Qe4 {[%clk 0:01:57.7]} 17... Qxe4 {[%clk 0:02:38.9]} 18.
Nxe4 {[%clk 0:01:57.7]} 18... Bb7 {[%clk 0:02:39.1]} 19. f3 {[%clk 0:01:56]}
19... Bxe4 {[%clk 0:02:37.4]} 20. fxg4 {[%clk 0:01:48.7]} 20... Bc5+ {[%clk
0:02:37]} 21. Kh1 {[%clk 0:01:48.1]} 21... Rd8 {[%clk 0:02:34.1]} 22. Be3 {[%clk
0:00:42.9]} 22... Bxe3 {[%clk 0:02:29.5]} 23. Rfe1 {[%clk 0:00:43.4]} 23...
Bxg2+ {[%clk 0:02:26.4]} 24. Kxg2 {[%clk 0:00:42.7]} 24... Rd2+ {[%clk
0:02:26.7]} 25. Kf3 {[%clk 0:00:42]} 25... Bc5 {[%clk 0:02:26.4]} 26. Rac1
{[%clk 0:00:40.4]} 26... Bf8 {[%clk 0:02:25]} 27. Rc8 {[%clk 0:00:34.6]} 27...
g6 {[%clk 0:02:25.2]} 28. h4 {[%clk 0:00:32.9]} 28... Kg7 {[%clk 0:02:25.4]} 29.
g5 {[%clk 0:00:28.8]} 29... Rxb2 {[%clk 0:02:22.7]} 30. a4 {[%clk 0:00:28.9]}
30... bxa4 {[%clk 0:02:22.5]} 31. Rc7 {[%clk 0:00:20.1]} 31... Rb3+ {[%clk
0:02:22.5]} 32. Kg2 {[%clk 0:00:16.7]} 32... a3 {[%clk 0:02:21.9]} 33. Rf1
{[%clk 0:00:11.8]} 33... Rb2+ {[%clk 0:02:18.5]} 34. Kh3 {[%clk 0:00:10.9]}
34... Rb3+ {[%clk 0:02:09.6]} 35. Kg2 {[%clk 0:00:10.5]} 35... Rg3+ {[%clk
0:02:07.8]} 36. Kh1 {[%clk 0:00:07.5]} 36... Rh3+ {[%clk 0:02:06.8]} 37. Kg2
{[%clk 0:00:07.4]} 37... Rg3+ {[%clk 0:01:27.2]} 38. Kh2 {[%clk 0:00:07.3]}
38... Bd6 {[%clk 0:01:25.3]} 39. Rcxf7+ {[%clk 0:00:03.8]} 39... Kg8 {[%clk
0:01:25.1]} 40. Kh1 {[%clk 0:00:02.2]} 40... a2 {[%clk 0:01:22.2]} 0-1

[Event "*** Titled Tuesday Blitz"]
[Site "Chess.com"]
[Date "2020.04.14"]
[Round "9"]
[White "GameOverBro"]
[Black "GMJustin"]
[Result "1-0"]
[WhiteElo "2560"]
[BlackElo "2284"]
[TimeControl "180+1"]
[EndTime "11:41:49 PDT"]
[Termination "GameOverBro won on time"]

1. e4 {[%clk 0:02:57.3]} 1... e5 {[%clk 0:02:58.9]} 2. Nf3 {[%clk 0:02:57.2]}
2... Nc6 {[%clk 0:02:58.6]} 3. Bb5 {[%clk 0:02:57.3]} 3... Nge7 {[%clk
0:02:57.9]} 4. O-O {[%clk 0:02:56.1]} 4... g6 {[%clk 0:02:53.7]} 5. d4 {[%clk
0:02:56.2]} 5... exd4 {[%clk 0:02:50.7]} 6. Nxd4 {[%clk 0:02:57.1]} 6... Bg7
{[%clk 0:02:49.9]} 7. Be3 {[%clk 0:02:41.1]} 7... O-O {[%clk 0:02:47.2]} 8. Nc3
{[%clk 0:02:40.3]} 8... d5 {[%clk 0:02:36.4]} 9. exd5 {[%clk 0:02:34.8]} 9...
Nxd5 {[%clk 0:02:29.7]} 10. Nxc6 {[%clk 0:02:29.8]} 10... bxc6 {[%clk
0:02:15.9]} 11. Bxc6 {[%clk 0:02:20.2]} 11... Nxe3 {[%clk 0:01:55.6]} 12. fxe3
{[%clk 0:01:53.6]} 12... Rb8 {[%clk 0:01:11.9]} 13. Qxd8 {[%clk 0:01:38.7]}
13... Rxd8 {[%clk 0:01:11.2]} 14. Bd5 {[%clk 0:01:38.5]} 14... Rxb2 {[%clk
0:00:29.4]} 15. Bxf7+ {[%clk 0:01:34.6]} 15... Kh8 {[%clk 0:00:28.4]} 16. Na4
{[%clk 0:01:25.8]} 16... Rb4 {[%clk 0:00:22.5]} 17. Rad1 {[%clk 0:01:21.5]}
17... Rxd1 {[%clk 0:00:16.6]} 18. Rxd1 {[%clk 0:01:20.7]} 18... Bf6 {[%clk
0:00:08.5]} 19. Bb3 {[%clk 0:01:17.6]} 19... Kg7 {[%clk 0:00:04.7]} 20. Nc5
{[%clk 0:01:17.2]} 20... Rb5 {[%clk 0:00:03.2]} 21. Ne4 {[%clk 0:01:10.9]} 21...
Be5 {[%clk 0:00:02.5]} 22. Rd8 {[%clk 0:01:09.5]} 22... Bf5 {[%clk 0:00:02.3]}
23. Ng5 {[%clk 0:01:07.8]} 23... h6 {[%clk 0:00:01.7]} 24. Rg8+ {[%clk
0:01:04.6]} 24... Kf6 {[%clk 0:00:02]} 25. Nh7+ {[%clk 0:01:02.8]} 25... Ke7
{[%clk 0:00:01.9]} 26. Nf8 {[%clk 0:00:58.7]} 26... Bc3 {[%clk 0:00:01.3]} 27.
Nxg6+ {[%clk 0:00:58.3]} 27... Bxg6 {[%clk 0:00:01.1]} 28. Rxg6 {[%clk
0:00:59.2]} 28... a5 {[%clk 0:00:01.1]} 29. Rxh6 {[%clk 0:00:58.8]} 29... Re5
{[%clk 0:00:01.1]} 30. Kf2 {[%clk 0:00:57.1]} 1-0

[Event "*** Titled Tuesday Blitz"]
[Site "Chess.com"]
[Date "2020.04.14"]
[Round "9"]
[White "pedromartinez91"]
[Black "Lucas_Tomiello"]
[Result "0-1"]
[WhiteElo "2495"]
[BlackElo "2371"]
[TimeControl "180+1"]
[EndTime "11:41:54 PDT"]
[Termination "Lucas_Tomiello won on time"]

1. Nf3 {[%clk 0:02:56.9]} 1... Nf6 {[%clk 0:02:59.6]} 2. g3 {[%clk 0:02:56.9]}
2... g6 {[%clk 0:03:00.2]} 3. Bg2 {[%clk 0:02:57.8]} 3... Bg7 {[%clk 0:03:01.1]}
4. O-O {[%clk 0:02:58.3]} 4... O-O {[%clk 0:03:02]} 5. c4 {[%clk 0:02:58.4]}
5... d6 {[%clk 0:03:01.2]} 6. Nc3 {[%clk 0:02:58.4]} 6... e5 {[%clk 0:03:01.8]}
7. d3 {[%clk 0:02:57.8]} 7... Nc6 {[%clk 0:03:02.2]} 8. Rb1 {[%clk 0:02:54]}
8... a5 {[%clk 0:03:02.1]} 9. a3 {[%clk 0:02:51.1]} 9... Be6 {[%clk 0:03:01.5]}
10. b4 {[%clk 0:02:46.7]} 10... axb4 {[%clk 0:03:02.4]} 11. axb4 {[%clk
0:02:46.4]} 11... Qd7 {[%clk 0:03:01.8]} 12. Bg5 {[%clk 0:02:39.5]} 12... h6
{[%clk 0:03:00.6]} 13. Bxf6 {[%clk 0:02:38.5]} 13... Bxf6 {[%clk 0:03:01.5]} 14.
Nd2 {[%clk 0:02:28]} 14... Bg7 {[%clk 0:02:57.7]} 15. b5 {[%clk 0:02:20.7]}
15... Nd8 {[%clk 0:02:56.6]} 16. Nd5 {[%clk 0:02:09.5]} 16... f5 {[%clk
0:02:29.6]} 17. b6 {[%clk 0:01:59.5]} 17... c6 {[%clk 0:02:27.9]} 18. Nc7 {[%clk
0:01:59.4]} 18... Ra2 {[%clk 0:02:26.2]} 19. Nb3 {[%clk 0:01:49.1]} 19... Bf7
{[%clk 0:02:17.9]} 20. Ra1 {[%clk 0:01:32.1]} 20... Rxa1 {[%clk 0:02:14.4]} 21.
Qxa1 {[%clk 0:01:31.8]} 21... Ne6 {[%clk 0:02:04.3]} 22. Qa7 {[%clk 0:01:27.1]}
22... Qc8 {[%clk 0:01:44.2]} 23. Nxe6 {[%clk 0:01:16.7]} 23... Bxe6 {[%clk
0:01:43.4]} 24. Na5 {[%clk 0:01:12.1]} 24... Rf7 {[%clk 0:01:41.9]} 25. Rb1
{[%clk 0:01:01.8]} 25... d5 {[%clk 0:01:38]} 26. cxd5 {[%clk 0:01:00.4]} 26...
cxd5 {[%clk 0:01:38.9]} 27. h4 {[%clk 0:00:23.1]} 27... e4 {[%clk 0:01:35.9]}
28. dxe4 {[%clk 0:00:18.6]} 28... fxe4 {[%clk 0:01:34.8]} 29. h5 {[%clk
0:00:11.2]} 29... Qc2 {[%clk 0:01:17.8]} 30. Rf1 {[%clk 0:00:06.7]} 30... gxh5
{[%clk 0:01:09.7]} 31. Nxb7 {[%clk 0:00:06.2]} 31... Kh7 {[%clk 0:01:07.2]} 0-1

[Event "*** Titled Tuesday Blitz"]
[Site "Chess.com"]
[Date "2020.04.14"]
[Round "9"]
[White "FILI86"]
[Black "atalz0"]
[Result "1-0"]
[WhiteElo "2586"]
[BlackElo "2403"]
[TimeControl "180+1"]
[EndTime "11:41:55 PDT"]
[Termination "FILI86 won on time"]

1. d4 {[%clk 0:03:00.9]} 1... d5 {[%clk 0:02:59.5]} 2. c4 {[%clk 0:03:00.1]}
2... e6 {[%clk 0:02:59.9]} 3. Nf3 {[%clk 0:02:59.4]} 3... a6 {[%clk 0:02:56.6]}
4. cxd5 {[%clk 0:02:59.1]} 4... exd5 {[%clk 0:02:57.1]} 5. Nc3 {[%clk
0:02:59.1]} 5... h6 {[%clk 0:02:55.6]} 6. Bf4 {[%clk 0:02:58]} 6... Nf6 {[%clk
0:02:55.6]} 7. e3 {[%clk 0:02:57.7]} 7... Bd6 {[%clk 0:02:56.1]} 8. Ne5 {[%clk
0:02:56]} 8... O-O {[%clk 0:02:53.3]} 9. Bd3 {[%clk 0:02:55.5]} 9... Re8 {[%clk
0:02:46.5]} 10. Qc2 {[%clk 0:02:51.9]} 10... Nbd7 {[%clk 0:02:42.9]} 11. Nxd7
{[%clk 0:02:19.1]} 11... Qxd7 {[%clk 0:02:43.8]} 12. Bg3 {[%clk 0:02:17.8]}
12... c6 {[%clk 0:02:38.3]} 13. O-O-O {[%clk 0:02:16.1]} 13... b5 {[%clk
0:02:30.3]} 14. Kb1 {[%clk 0:02:15.3]} 14... a5 {[%clk 0:02:27.4]} 15. Rc1
{[%clk 0:02:13.1]} 15... a4 {[%clk 0:01:56.8]} 16. Bxd6 {[%clk 0:02:11.3]} 16...
Qxd6 {[%clk 0:01:56.6]} 17. h3 {[%clk 0:02:12.2]} 17... Bd7 {[%clk 0:01:29.4]}
18. Ne2 {[%clk 0:02:10.6]} 18... b4 {[%clk 0:01:01.3]} 19. Qc5 {[%clk
0:02:09.9]} 19... Qxc5 {[%clk 0:00:58.8]} 20. Rxc5 {[%clk 0:02:10.8]} 20... Kf8
{[%clk 0:00:43.6]} 21. Rhc1 {[%clk 0:02:06.4]} 21... Ke7 {[%clk 0:00:42.6]} 22.
Ng1 {[%clk 0:01:54.5]} 22... Ne4 {[%clk 0:00:21.7]} 23. Bxe4 {[%clk 0:01:53.6]}
23... dxe4 {[%clk 0:00:22.6]} 24. Ne2 {[%clk 0:01:53.8]} 24... f5 {[%clk
0:00:17.1]} 25. Nf4 {[%clk 0:01:50.9]} 25... g5 {[%clk 0:00:13.7]} 26. Ng6+
{[%clk 0:01:50.9]} 26... Kf6 {[%clk 0:00:13.5]} 27. Ne5 {[%clk 0:01:51.8]} 27...
Re7 {[%clk 0:00:11.5]} 28. Nxd7+ {[%clk 0:01:49.7]} 28... Rxd7 {[%clk
0:00:12.4]} 29. Rxc6+ {[%clk 0:01:50.3]} 29... Kg7 {[%clk 0:00:13.1]} 30. Rb6
{[%clk 0:01:50.3]} 30... a3 {[%clk 0:00:08.7]} 31. b3 {[%clk 0:01:49.9]} 31...
Raa7 {[%clk 0:00:06.2]} 32. Rxb4 {[%clk 0:01:49.4]} 32... Rac7 {[%clk
0:00:04.4]} 33. Rxc7 {[%clk 0:01:47.6]} 33... Rxc7 {[%clk 0:00:04.3]} 34. Rc4
{[%clk 0:01:47.9]} 34... Rf7 {[%clk 0:00:04.6]} 35. b4 {[%clk 0:01:42]} 35... f4
{[%clk 0:00:04.8]} 36. Kc2 {[%clk 0:01:36.3]} 36... fxe3 {[%clk 0:00:03.8]} 37.
fxe3 {[%clk 0:01:37.2]} 37... Rf2+ {[%clk 0:00:04.2]} 38. Kb3 {[%clk 0:01:37.6]}
38... Rxg2 {[%clk 0:00:03.6]} 39. b5 {[%clk 0:01:36.3]} 39... Rg3 {[%clk
0:00:04.3]} 40. Rc3 {[%clk 0:01:33.1]} 40... Rxh3 {[%clk 0:00:03]} 41. b6 {[%clk
0:01:33.1]} 41... Rh1 {[%clk 0:00:02.2]} 42. Kxa3 {[%clk 0:01:29.5]} 1-0